fUST/lending_fUST_20240821
["ID","MTS","AMOUNT","RATE_DAILY","PERIOD"]
[335418747,1724212238366,-156.21496732,0.00033234,3]
[335418749,1724212238375,-150.0,0.00033338,2]
[335418751,1724212238384,-4408.28061539,0.00034047,2]
[335418754,1724212238394,-500.0,0.00034246,21]
[335418756,1724212238403,-500.0,0.00034246,21]
[335418758,1724212238412,-500.0,0.00034246,21]
[335418760,1724212238421,-516.28430772,0.00034246,21]
[335418761,1724212238432,-193.720311,0.00034247,2]
[335418763,1724212238441,-4408.28061539,0.00034287,2]
[335418765,1724212238450,-5031.84946499,0.00034386,49]
[335418768,1724212238460,-151.53141612,0.00034416,2]
[335418770,1724212238469,-626.68,0.00034597,3]
[335418772,1724212238478,-500.0,0.00034631,7]
[335418774,1724212238488,-212.75437216,0.00034631,7]
[335418776,1724212238497,-500.0,0.00034631,7]
[335418778,1724212238507,-500.0,0.00034631,7]
[335418780,1724212238516,-500.0,0.00034631,7]
[335418782,1724212238525,-579.71083092,0.00034631,7]
[335418784,1724212238534,-4011.85,0.00034632,21]
[335418786,1724212238544,-14640.60780233,0.00034632,2]
[335418788,1724212238553,-196.50133473,0.00034701,2]
[335418790,1724212238563,-4408.28061541,0.00034789,2]
[335418802,1724212238665,-1632.06462097,0.000348,12]
[335418805,1724212238682,-1632.06462096,0.000348,12]
[335418807,1724212238698,-1632.06462096,0.000348,12]
[335418809,1724212238707,-1632.06462096,0.000348,12]
[335418811,1724212238716,-14502.2673076,0.000348,4]
[335418813,1724212238726,-14502.2673076,0.00034811,4]
[335418815,1724212238735,-72785.36433423,0.00034821,5]
[335418817,1724212238744,-1000.0,0.00034821,3]
[335418819,1724212238754,-524.38569153,0.00034821,2]
[335418821,1724212238763,-524.38569146,0.0003483,2]
[335418823,1724212238772,-20695.43617569,0.00034831,120]
[335418825,1724212238781,-524.38569146,0.00034839,2]
[335418827,1724212238791,-524.38569146,0.00034847,2]
[335418829,1724212238800,-524.38569146,0.00034856,2]
[335418831,1724212238810,-150.0,0.00034861,2]
[335418833,1724212238819,-524.38569146,0.00034865,2]
[335418835,1724212238828,-524.38569146,0.00034874,2]
[335418837,1724212238837,-5911.23,0.00034879,21]
[335418839,1724212238846,-524.38569146,0.00034882,2]
[335418841,1724212238856,-4011.85,0.00034889,21]
[335418843,1724212238865,-14502.2673076,0.0003489,4]
[335418845,1724212238875,-524.38569146,0.00034891,2]
[335418847,1724212238884,-4011.85,0.00034899,21]
[335418849,1724212238893,-4011.85,0.00034899,21]
[335418851,1724212238902,-23021.672492,0.000349,7]
[335418853,1724212238912,-1193.05305734,0.000349,15]
[335418855,1724212238921,-300.406197,0.000349,17]
[335418857,1724212238930,-524.38569146,0.000349,2]
[335418859,1724212238939,-14502.2673076,0.0003491,4]
[335418861,1724212238948,-25486.91644951,0.00034911,9]
[335418863,1724212238957,-58009.0692304,0.00034911,4]
[335418865,1724212238967,-4011.85,0.00034919,21]
[335418867,1724212238976,-4011.85,0.0003492,21]
[335418869,1724212238985,-4011.85,0.0003492,21]
[335418871,1724212238994,-4011.85,0.0003492,21]
[335418873,1724212239003,-3942.92384675,0.0003492,21]
[335418875,1724212239015,-68.92615325,0.0003492,21]
[335418877,1724212239024,-400.7923994,0.0003492,21]
[335419002,1724212288500,9.24744286,0.00014247,2]
[335419003,1724212288523,153.14896999,0.00014247,2]
[335419004,1724212288546,3.25326515,0.00014247,2]
[335419005,1724212346162,194.65948041,0.00014,2]
[335419006,1724212484760,154.59033561,0.00013971,2]
[335419007,1724212497055,20799.06185203,0.00013971,2]
[335419008,1724212524421,240.61655831,0.00013971,2]
[335419009,1724212525917,155.20107124,0.00013971,2]
[335419010,1724212581646,158.13895029,0.00013971,2]
[335419011,1724212599540,862.64603536,0.00013971,2]
[335419012,1724212609541,862.64603536,0.00013971,2]
[335419013,1724212610772,1671.80534877,0.00013971,2]
[335419014,1724212617401,288.34165707,0.00013971,2]
[335419015,1724212620363,413.74889628,0.00013971,2]
[335419016,1724212630025,495.526907,0.00013971,2]
[335419017,1724212648036,14210.66015685,0.00013971,2]
[335419018,1724212660774,154.65844209,0.00013971,2]
[335419019,1724212684780,1671.80534877,0.00013971,2]
[335419020,1724212816940,2309.72069701,0.00013971,3]
[335419021,1724212821421,288.34165707,0.00013971,2]
[335419022,1724212828157,158.35596546,0.00013971,2]
[335419023,1724212831384,411.26639769,0.00013971,2]
[335419024,1724212838555,862.64603536,0.00013971,2]
[335419025,1724212848793,1119.94028819,0.00013971,2]
[335419026,1724212854559,862.64603536,0.00013971,2]
[335419027,1724213028931,288.34165707,0.00013971,2]
[335419028,1724213106767,862.64603536,0.00013971,2]
[335419029,1724213155140,-205.595402,0.00014247,2]
[335419030,1724213155162,-230.77399459,0.00014519,2]
[335419031,1724213155183,-100.162995,0.00014519,2]
[335419040,1724213229131,-716.10779831,0.00014519,2]
[335419041,1724213235143,-146.53823705,0.00014519,2]
[335419042,1724213235166,-15.04696782,0.00021,2]
[335419043,1724213241130,-165.649678,0.00014247,2]
[335419044,1724213241155,-318.55706663,0.00017598,2]
[335419045,1724213241177,-134.95303218,0.00021,2]
[335419046,1724213241197,-161.932777,0.0002125,2]
[335419047,1724213241218,-3000.0,0.00021573,2]
[335419048,1724213241240,-252.0,0.00022394,2]
[335419049,1724213241260,-4095.61799084,0.00022395,2]
[335419050,1724213241288,-2988.79081062,0.00022395,2]
[335419051,1724213246191,-204.20062038,0.00017598,2]
[335419060,1724213348105,-991.38842768,0.00014245,2]
[335419061,1724213348143,-862.64603536,0.00014519,2]
[335419062,1724213348170,-218.7590501,0.00017598,2]
[335419063,1724213348198,-39.81294396,0.00017598,2]
[335419066,1724213350606,219.21728904,0.00017598,2]
[335419067,1724213350629,26.19645159,0.00017598,2]
[335419068,1724213352055,1266.56422857,0.00014519,2]
[335419069,1724213370392,151.48342059,0.00014519,2]
[335419070,1724213370413,3.75539917,0.00014519,2]
[335419072,1724213375290,228.4713984,0.00017598,2]
[335419073,1724213375312,151.66491937,0.00017598,2]
[335419074,1724213375333,663.48392067,0.00017598,2]
[335419075,1724213375356,210.504,0.00017598,2]
[335419076,1724213375378,151.7176423,0.00017598,2]
[335419077,1724213375400,252.07918578,0.00017598,2]
[335419090,1724213432407,-862.64603536,0.00014519,2]
[335419091,1724213432417,-11.15913692,0.00017598,2]
[335419092,1724213432427,-218.7590501,0.00017598,2]
[335419093,1724213432437,-1621.64150516,0.00017598,2]
[335419111,1724213438317,-1754.82103027,0.00017598,2]
[335419113,1724213438327,-1115.66905965,0.00017598,2]
[335419115,1724213438337,-156.66298998,0.0002,2]
[335419117,1724213438346,-979.462358,0.00021982,2]
[335419119,1724213438355,-253.0,0.00022394,2]
[335419121,1724213438365,-17815.59119854,0.00022395,2]
[335419123,1724213438375,-251.0,0.00022525,2]
[335419125,1724213438384,-189.790055,0.0002261,2]
[335419127,1724213438393,-189.790055,0.00023199,2]
[335419129,1724213438403,-167.327829,0.00023268,2]
[335419131,1724213438412,-189.790055,0.00023788,2]
[335419133,1724213438422,-277.68803325,0.00024485,2]
[335419135,1724213438431,-392.21560345,0.00024488,2]
[335419137,1724213438441,-6020.86320234,0.00024498,2]
[335419140,1724213438453,-4322.65020186,0.00024498,2]
[335419142,1724213438463,-933.9552593,0.00024588,2]
[335419144,1724213438472,-882.99597685,0.00024688,2]
[335419146,1724213438481,-156.01303296,0.00025,2]
[335419148,1724213438491,-172.0,0.00025,2]
[335419150,1724213438500,-3000.0,0.00025352,2]
[335419152,1724213438509,-392.21560345,0.00025975,2]
[335419154,1724213438519,-152.21,0.000266,31]
[335419156,1724213438528,-152.21,0.000266,31]
[335419158,1724213438537,-152.21,0.000266,31]
[335419160,1724213438546,-152.21,0.000266,31]
[335419162,1724213438555,-152.21,0.000266,31]
[335419164,1724213438565,-152.21,0.000266,31]
[335419166,1724213438574,-166.688108,0.00026627,2]
[335419168,1724213438583,-392.21560345,0.00027463,2]
[335419170,1724213438595,-152.21,0.000286,31]
[335419172,1724213438606,-152.21,0.000286,31]
[335419174,1724213438615,-152.21,0.000286,31]
[335419176,1724213438625,-152.21,0.000286,31]
[335419178,1724213438634,-152.21,0.000286,31]
[335419180,1724213438645,-152.21,0.000286,31]
[335419182,1724213438655,-152.21,0.000286,31]
[335419184,1724213438664,-152.21,0.000286,31]
[335419186,1724213438675,-152.21,0.000286,31]
[335419188,1724213438685,-152.21,0.000286,31]
[335419190,1724213438694,-152.21,0.000286,31]
[335419193,1724213438705,-152.21,0.000286,31]
[335419195,1724213438714,-392.21560345,0.0002895,2]
[335419197,1724213438723,-1260.81854444,0.0002909,2]
[335419199,1724213438732,-178.72751622,0.0003,5]
[335419201,1724213438742,-392.21560345,0.00030438,2]
[335419203,1724213438751,-500.0,0.000307,2]
[335419205,1724213438761,-152.21,0.000307,31]
[335419207,1724213438771,-152.21,0.000307,31]
[335419209,1724213438781,-152.21,0.000307,31]
[335419211,1724213438790,-152.21,0.000307,31]
[335419213,1724213438800,-152.21,0.000307,31]
[335419215,1724213438809,-152.21,0.000307,31]
[335419217,1724213438820,-152.21,0.000307,31]
[335419219,1724213438831,-152.21,0.000307,31]
[335419222,1724213438843,-152.21,0.000307,31]
[335419224,1724213438853,-152.21,0.000307,31]
[335419226,1724213438864,-152.21,0.000307,31]
[335419228,1724213438875,-152.21,0.000307,31]
[335419230,1724213438884,-500.0,0.00031241,2]
[335419232,1724213438894,-500.0,0.00031241,2]
[335419234,1724213438904,-500.0,0.00031241,2]
[335419236,1724213438914,-500.0,0.00031241,2]
[335419238,1724213438924,-500.0,0.00031241,2]
[335419240,1724213438933,-500.0,0.00031241,2]
[335419242,1724213438942,-500.0,0.00031241,2]
[335419244,1724213438952,-500.0,0.00031241,2]
[335419246,1724213438961,-500.0,0.00031241,2]
[335419248,1724213438972,-500.0,0.00031241,2]
[335419250,1724213438982,-500.0,0.00031241,2]
[335419252,1724213438991,-500.0,0.00031241,2]
[335419254,1724213439001,-500.0,0.00031241,2]
[335419256,1724213439010,-500.0,0.00031241,2]
[335419258,1724213439019,-411.52670668,0.00031241,2]
[335419260,1724213439029,-500.0,0.00031241,2]
[335419262,1724213439038,-500.0,0.00031241,2]
[335419264,1724213439048,-500.0,0.00031241,2]
[335419266,1724213439058,-500.0,0.00031241,2]
[335419268,1724213439067,-500.0,0.00031241,2]
[335419270,1724213439076,-500.0,0.00031241,2]
[335419272,1724213439086,-500.0,0.00031241,2]
[335419274,1724213439095,-500.0,0.00031241,2]
[335419276,1724213439105,-500.0,0.00031241,2]
[335419277,1724213439114,-500.0,0.00031241,2]
[335419279,1724213439124,-500.0,0.00031241,2]
[335419281,1724213439134,-500.0,0.00031241,2]
[335419283,1724213439143,-500.0,0.00031241,2]
[335419285,1724213439154,-500.0,0.00031241,2]
[335419287,1724213439163,-500.0,0.00031241,2]
[335419289,1724213439172,-500.0,0.00031241,2]
[335419291,1724213439182,-500.0,0.00031241,2]
[335419293,1724213439191,-500.0,0.00031241,2]
[335419295,1724213439200,-500.0,0.00031241,2]
[335419297,1724213439210,-500.0,0.00031241,2]
[335419299,1724213439219,-500.0,0.00031241,2]
[335419301,1724213439228,-500.0,0.00031241,2]
[335419303,1724213439237,-500.0,0.00031241,2]
[335419305,1724213439247,-500.0,0.00031241,2]
[335419307,1724213439256,-500.0,0.00031241,2]
[335419310,1724213439266,-500.0,0.00031241,2]
[335419312,1724213439276,-500.0,0.00031241,2]
[335419314,1724213439285,-500.0,0.00031241,2]
[335419323,1724213439366,-500.0,0.00031241,2]
[335419326,1724213439390,-500.0,0.00031241,2]
[335419328,1724213439400,-500.0,0.00031241,2]
[335419330,1724213439409,-500.0,0.00031241,2]
[335419332,1724213439418,-500.0,0.00031241,2]
[335419334,1724213439431,-500.0,0.00031241,2]
[335419335,1724213439441,-500.0,0.00031241,2]
[335419337,1724213439456,-500.0,0.00031241,2]
[335419339,1724213439466,-500.0,0.00031241,2]
[335419341,1724213439490,-350.0,0.00031241,2]
[335419343,1724213439509,-491.26129037,0.00031248,2]
[335419345,1724213439521,-155.98974481,0.00031781,120]
[335419347,1724213439535,-165.649678,0.00031781,2]
[335419349,1724213439546,-392.21560345,0.00031925,2]
[335419351,1724213439568,-152.21,0.000327,31]
[335419353,1724213439578,-152.21,0.000327,31]
[335419355,1724213439588,-152.21,0.000327,31]
[335419357,1724213439600,-152.21,0.000327,31]
[335419359,1724213439609,-152.21,0.000327,31]
[335419361,1724213439630,-152.21,0.000327,31]
[335419363,1724213439646,-152.21,0.000327,31]
[335419365,1724213439657,-152.21,0.000327,31]
[335419367,1724213439669,-152.21,0.000327,31]
[335419369,1724213439680,-152.21,0.000327,31]
[335419371,1724213439689,-152.21,0.000327,31]
[335419373,1724213439700,-152.21,0.000327,31]
[335419375,1724213439710,-979.462358,0.00032973,2]
[335419377,1724213439720,-156.21496732,0.00033234,3]
[335419379,1724213439730,-150.0,0.00033973,2]
[335419381,1724213439740,-1500.0,0.00034,2]
[335419383,1724213439750,-300.0,0.00034,9]
[335419385,1724213439759,-196.50133473,0.00034006,2]
[335419387,1724213439769,-4408.28061539,0.0003406,2]
[335419389,1724213439779,-882.39,0.00034066,3]
[335419393,1724213439789,-70161.71,0.00034136,3]
[335419396,1724213439804,-33007.2630862,0.00034146,4]
[335419398,1724213439816,-151.0,0.00034241,7]
[335419400,1724213439826,-151.0,0.00034241,7]
[335419402,1724213439836,-151.0,0.00034246,7]
[335419404,1724213439846,-151.0,0.00034246,7]
[335419406,1724213439856,-151.0,0.00034246,7]
[335419408,1724213439866,-500.0,0.00034246,21]
[335419410,1724213439875,-500.0,0.00034246,21]
[335419412,1724213439885,-516.28430772,0.00034246,21]
[335419414,1724213439896,-500.0,0.00034246,21]
[335419416,1724213439906,-4161.71,0.00034246,21]
[335419418,1724213439915,-4161.71,0.00034246,21]
[335419420,1724213439925,-4161.71,0.00034246,21]
[335419422,1724213439934,-4161.71,0.00034246,21]
[335419424,1724213439945,-4161.71,0.00034246,21]
[335419426,1724213439955,-4161.71,0.00034246,21]
[335419428,1724213439965,-4161.71,0.00034246,21]
[335419431,1724213439975,-4161.71,0.00034246,21]
[335419433,1724213439985,-153.423635,0.00034246,7]
[335419435,1724213439995,-214.648544,0.00034247,2]
[335419437,1724213440005,-4161.71,0.00034354,21]
[335419439,1724213440015,-219.71087009,0.00034385,7]
[335419441,1724213440025,-523.72940789,0.00034385,7]
[335419443,1724213440035,-500.0,0.00034385,7]
[335419445,1724213440044,-500.0,0.00034385,7]
[335419447,1724213440054,-500.0,0.00034385,7]
[335419449,1724213440064,-500.0,0.00034385,7]
[335419451,1724213440073,-444.12255949,0.00034385,7]
[335419453,1724213440083,-500.0,0.00034385,7]
[335419455,1724213440093,-500.0,0.00034385,7]
[335419457,1724213440103,-500.0,0.00034385,7]
[335419459,1724213440113,-500.0,0.00034385,7]
[335419461,1724213440123,-500.0,0.00034385,7]
[335419463,1724213440133,-500.0,0.00034385,7]
[335419465,1724213440143,-5943.41,0.00034385,21]
[335419467,1724213440152,-5031.84946499,0.00034386,44]
[335419469,1724213440162,-4408.28061539,0.00034411,2]
[335419471,1724213440172,-151.53141612,0.00034466,2]
[335419473,1724213440181,-16503.6315431,0.00034622,4]
[335419474,1724213440190,-1000.0,0.00034632,2]
[335419475,1724213440201,-160.0,0.00034676,3]
[335419476,1724213440211,-161.03833414,0.00034676,5]
[335419477,1724213440220,-2858.62,0.00034719,2]
[335419478,1724213440230,-2858.62,0.00034719,2]
[335419479,1724213440239,-2858.62,0.00034719,2]
[335419480,1724213440249,-2858.62,0.00034719,2]
[335419481,1724213440259,-2858.62,0.00034719,2]
[335419482,1724213440268,-2858.62,0.00034719,2]
[335419483,1724213440277,-2858.62,0.00034719,2]
[335419484,1724213440287,-2858.62,0.00034719,2]
[335419485,1724213440296,-2858.62,0.00034719,2]
[335419486,1724213440307,-2858.62,0.00034719,2]
[335419487,1724213440316,-88888.0,0.0003472,5]
[335419488,1724213440326,-176.141595,0.0003472,7]
[335419489,1724213440335,-151.0,0.0003472,7]
[335419490,1724213440345,-151.0,0.0003472,7]
[335419491,1724213440354,-151.0,0.0003472,7]
[335419492,1724213440364,-190.118313,0.0003472,7]
[335419493,1724213440374,-156.748503,0.0003472,7]
[335419494,1724213440384,-151.0,0.0003472,7]
[335419496,1724213440394,-151.0,0.0003472,7]
[335419498,1724213440404,-314.779329,0.0003472,7]
[335419500,1724213440414,-151.0,0.0003472,7]
[335419502,1724213440424,-314.779329,0.0003472,7]
[335419504,1724213440434,-4408.28061541,0.00034763,2]
[335419506,1724213440443,-151.0,0.00034789,7]
[335419508,1724213440452,-151.0,0.00034789,7]
[335419510,1724213440462,-151.0,0.00034789,7]
[335419512,1724213440472,-25486.91644951,0.0003479,9]
[335419514,1724213440481,-175.923636,0.0003479,7]
[335419516,1724213440492,-175.923636,0.0003479,7]
[335419518,1724213440502,-162.761136,0.0003479,7]
[335419520,1724213440512,-162.761136,0.0003479,7]
[335419522,1724213440522,-16503.6315431,0.0003479,4]
[335419524,1724213440533,-153.835038,0.00034799,7]
[335419526,1724213440545,-151.0,0.00034799,7]
[335419528,1724213440555,-4161.71,0.00034799,21]
[335419530,1724213440564,-6528.25848385,0.000348,12]
[335419532,1724213440574,-152.21,0.000348,31]
[335419534,1724213440584,-152.21,0.000348,31]
[335419536,1724213440595,-152.21,0.000348,31]
[335419538,1724213440606,-152.21,0.000348,31]
[335419540,1724213440616,-152.21,0.000348,31]
[335419542,1724213440625,-152.21,0.000348,31]
[335419544,1724213440635,-152.21,0.000348,31]
[335419546,1724213440645,-152.21,0.000348,31]
[335419548,1724213440655,-152.21,0.000348,31]
[335419550,1724213440664,-152.21,0.000348,31]
[335419553,1724213440675,-152.21,0.000348,31]
[335419555,1724213440685,-152.21,0.000348,31]
[335419557,1724213440694,-16503.6315431,0.0003481,4]
[335419559,1724213440703,-524.38569153,0.00034819,2]
[335419561,1724213440712,-251.922161,0.0003482,2]
[335419562,1724213440722,-153.316594,0.0003482,7]
[335419564,1724213440733,-155.627746,0.0003482,7]
[335419566,1724213440742,-153.0217,0.0003482,7]
[335419568,1724213440751,-151.0,0.0003482,7]
[335419571,1724213440761,-151.0,0.0003482,7]
[335419573,1724213440771,-151.0,0.0003482,7]
[335419575,1724213440780,-153.828758,0.0003482,7]
[335419576,1724213440789,-151.0,0.0003482,7]
[335419578,1724213440799,-151.0,0.0003482,7]
[335419581,1724213440810,-151.0,0.0003482,7]
[335419582,1724213440820,-175.923636,0.0003482,7]
[335419584,1724213440829,-175.923636,0.0003482,7]
[335419586,1724213440839,-162.761136,0.0003482,7]
[335419588,1724213440849,-162.761136,0.0003482,7]
[335419590,1724213440858,-164.341905,0.0003482,7]
[335419592,1724213440867,-151.0,0.0003482,7]
[335419594,1724213440877,-151.0,0.0003482,7]
[335419596,1724213440886,-151.0,0.0003482,7]
[335419598,1724213440895,-152.362039,0.0003482,7]
[335419600,1724213440905,-151.347671,0.0003482,7]
[335419603,1724213440918,-1543.449739,0.0003482,7]
[335419605,1724213440927,-1543.449739,0.0003482,7]
[335419607,1724213440938,-524.38569146,0.00034828,2]
[335419609,1724213440947,-24343.44652071,0.00034831,120]
[335419611,1724213440956,-152.347072,0.00034831,7]
[335419613,1724213440965,-154.26523,0.00034831,7]
[335419615,1724213440974,-151.0,0.00034831,7]
[335419617,1724213440983,-151.0,0.00034831,7]
[335419619,1724213440992,-151.0,0.00034831,7]
[335419621,1724213441002,-314.779329,0.00034831,7]
[335419623,1724213441012,-151.0,0.00034831,7]
[335419625,1724213441024,-314.779329,0.00034831,7]
[335419627,1724213441033,-524.38569146,0.00034837,2]
[335419629,1724213441045,-524.38569146,0.00034846,2]
[335419631,1724213441056,-396.8064144,0.00034849,2]
[335419633,1724213441065,-207.6000865,0.00034849,2]
[335419635,1724213441074,-524.38569146,0.00034855,2]
[335419637,1724213441084,-524.38569146,0.00034864,2]
[335419639,1724213441093,-524.38569146,0.00034873,2]
[335419641,1724213441102,-524.38569146,0.00034882,2]
[335419643,1724213441112,-16503.6315431,0.0003489,4]
[335419645,1724213441121,-1000.0,0.0003489,3]
[335419647,1724213441130,-524.38569146,0.00034891,2]
[335419649,1724213441139,-16503.6315431,0.00034898,4]
[335419651,1724213441148,-7381.72188096,0.000349,7]
[335419904,1724213443551,-71.34185925,0.00024688,2]
[335420200,1724213446462,-332.08786785,0.00024688,2]
[335420326,1724213603629,862.64603536,0.00013971,2]
[335420327,1724213665019,218.7590501,0.00013971,2]
[335420328,1724213669543,1621.64150516,0.00013971,2]
[335420329,1724213703225,154.81392071,0.00013971,2]
[335420330,1724213705697,154.85932038,0.00013971,2]
[335420331,1724213914144,784.16353444,0.00013971,2]
[335420332,1724214345143,-991.38842768,0.00014245,2]
[335420333,1724214345165,-164.285014,0.00014247,2]
[335420334,1724214345187,-165.699289,0.00014247,2]
[335420335,1724214345208,-154.8350703,0.00016915,2]
[335420336,1724214345230,-31.09493084,0.00018947,2]
[335420337,1724214429131,-425.89766564,0.00014519,2]
[335420338,1724214434129,-565.49076204,0.00014519,2]
[335420339,1724214434152,-248.71583516,0.00018947,2]
[335420340,1724214434175,-166.688108,0.00019178,2]
[335420341,1724214434196,-259.93028485,0.0002,2]
[335420342,1724214434219,-156.66298998,0.0002,2]
[335420343,1724214434242,-1578.98824714,0.00020177,2]
[335420344,1724214436085,-1707.65946619,0.00020177,2]
[335420345,1724214523356,410.42681097,0.0001,2]
[335420346,1724214550105,-991.38842768,0.00014519,2]
[335420347,1724214578582,140.09499291,0.00014519,2]
[335420348,1724214578603,249.36381329,0.00014519,2]
[335420349,1724214578625,151.66491937,0.00014519,2]
[335420350,1724214578647,253.77523326,0.00014519,2]
[335420351,1724214578668,196.0,0.00014519,2]
[335420352,1724214578687,0.48946885,0.00014519,2]
[335420353,1724214621836,197.27816566,0.00017598,4]
[335420354,1724214621860,0.24552138,0.00017598,4]
[335420364,1724214632490,-11773.8430286,0.00020177,2]
[335420421,1724214638675,-214.5094304,0.00019375,2]
[335420424,1724214638688,-35.4905696,0.00019375,2]
[335420426,1724214638699,-250.0,0.00019428,2]
[335420428,1724214638709,-250.0,0.00019481,2]
[335420430,1724214638718,-250.0,0.00019535,2]
[335420432,1724214638727,-250.0,0.00019588,2]
[335420434,1724214638737,-250.0,0.00019641,2]
[335420436,1724214638746,-500.0,0.00020176,2]
[335420438,1724214638756,-500.0,0.00020176,2]
[335420440,1724214638766,-500.0,0.00020176,2]
[335420442,1724214638776,-500.0,0.00020176,2]
[335420444,1724214638786,-500.0,0.00020176,2]
[335420446,1724214638796,-500.0,0.00020176,2]
[335420448,1724214638806,-500.0,0.00020176,2]
[335420450,1724214638815,-500.0,0.00020176,2]
[335420452,1724214638825,-297.08658205,0.00020176,2]
[335420454,1724214638834,-500.0,0.00020176,2]
[335420456,1724214638844,-500.0,0.00020176,2]
[335420459,1724214638853,-500.0,0.00020176,2]
[335420460,1724214638862,-500.0,0.00020176,2]
[335420462,1724214638872,-500.0,0.00020176,2]
[335420465,1724214638882,-500.0,0.00020176,2]
[335420466,1724214638891,-500.0,0.00020176,2]
[335420468,1724214638900,-500.0,0.00020176,2]
[335420470,1724214638909,-500.0,0.00020176,2]
[335420472,1724214638918,-500.0,0.00020176,2]
[335420475,1724214638927,-500.0,0.00020176,2]
[335420477,1724214638939,-500.0,0.00020176,2]
[335420479,1724214638951,-500.0,0.00020176,2]
[335420481,1724214638960,-500.0,0.00020176,2]
[335420483,1724214638969,-500.0,0.00020176,2]
[335420485,1724214638982,-500.0,0.00020176,2]
[335420487,1724214638992,-500.0,0.00020176,2]
[335420489,1724214639001,-500.0,0.00020176,2]
[335420491,1724214639011,-9839.50925807,0.00020177,2]
[335420493,1724214639020,-226.13158555,0.00020177,2]
[335420495,1724214639030,-10513.28749774,0.00020177,2]
[335420497,1724214639040,-287.17173053,0.00020177,2]
[335420499,1724214639050,-113135.09772615,0.00020177,2]
[335420502,1724214639063,-13378.22851095,0.00020177,2]
[335420504,1724214639072,-1260.81854444,0.00020177,2]
[335420506,1724214639082,-4252.9933853,0.00020199,2]
[335420508,1724214639092,-277.68803325,0.00020224,2]
[335420510,1724214639102,-168.095656,0.00020323,2]
[335420512,1724214639111,-251.0,0.00020668,2]
[335420514,1724214639121,-3000.0,0.00020672,2]
[335420516,1724214639130,-500.0,0.00020813,2]
[335420518,1724214639139,-500.0,0.00020914,2]
[335420520,1724214639149,-150.0,0.00021,2]
[335420522,1724214639159,-490.45409938,0.00021462,2]
[335420524,1724214639172,-1377.51566766,0.00022035,10]
[335420527,1724214639183,-106.36632402,0.00024349,2]
[335420754,1724214643784,-9.8910241,0.00019694,2]
[335420769,1724214902317,154.88354953,0.00013971,2]
[335420770,1724214914242,245.90664773,0.00013971,2]
[335420771,1724214936106,154.79103211,0.00013971,2]
[335420772,1724215538122,-168.698788,0.00014247,2]
[335420773,1724215538143,-161.150655,0.00014247,2]
[335420774,1724215538164,-366.06574561,0.00016799,2]
[335420775,1724215538184,-668.60513388,0.00016934,2]
[335420776,1724215633092,-150.70693244,0.00019489,2]
[335420777,1724215638107,-16.62089656,0.00019489,2]
[335420778,1724215638128,-560.96668565,0.00019619,2]
[335420779,1724215642207,-1065.55435835,0.00019619,2]
[335420780,1724215643081,-255.31862265,0.00019619,2]
[335420781,1724215651138,-1118.16033335,0.00019619,2]
[335420782,1724215651160,-161.932777,0.00019633,2]
[335420783,1724215651182,-2062.60021258,0.00019793,2]
[335420784,1724215652098,-478.98867154,0.00019793,2]
[335420785,1724215748145,-3008.90108108,0.00019793,2]
[335420786,1724215748296,-174.505448,0.0001989,2]
[335420787,1724215748318,-174.505448,0.00019944,2]
[335420788,1724215748340,-67.92410412,0.00019999,2]